bitfinex/quotes_ETHUSD_20241119
["timestamp","ask_amount","ask_price","bid_price","bid_amount"]
[1732026723168,0.762,3100.0,3098.9,3.22693]
[1732026723169,4.03861,3099.9,3098.7,0.7977]
[1732026723497,4.03861,3099.9,3097.6,5.21614345]
[1732026723498,0.8127,3099.1,3097.7,0.7977]
[1732026723658,3.0,3099.4,3097.8,3.22808]
[1732026723659,0.7827,3098.4,3097.8,3.22808]
[1732026723859,0.7827,3098.4,3097.7,0.7977]
[1732026724167,0.7827,3098.4,3097.7,4.02585]
[1732026724538,0.7827,3098.4,3097.3,0.765]
[1732026724812,0.7827,3098.4,3097.0,3.99389]
[1732026724953,0.7968,3098.2,3096.6,4.05754]
[1732026725161,0.7968,3097.3,3096.2,0.8282]
[1732026725480,16.37057445,3098.5,3096.2,0.8282]
[1732026725481,0.7988,3097.7,3096.9,3.22902]
[1732026725682,0.7988,3097.7,3096.7,3.22923]
[1732026725860,4.02701,3097.7,3096.9,3.22899]
[1732026726060,4.23314445,3097.5,3096.2,0.8282]
[1732026726306,0.8246,3097.0,3095.8,3.23016]
[1732026726613,0.8246,3097.0,3095.2,0.01]
[1732026726614,0.8246,3096.6,3095.2,4.00872]
[1732026726835,0.01,3096.9,3094.9,3.23112]
[1732026726836,4.05457,3096.0,3094.9,3.23112]
[1732026727106,4.05457,3096.0,3094.8,4.00921]
[1732026727107,3.23017,3095.9,3095.0,3.23092]
[1732026727273,0.8246,3096.0,3094.4,4.01558]
[1732026727472,0.8246,3096.0,3095.1,3.23086]
[1732026727809,0.8246,3096.0,3095.4,3.23055]
[1732026728013,0.8246,3096.0,3095.4,3.23058]
[1732026728362,0.8246,3096.0,3095.3,3.2307]
[1732026728605,3.2297,3096.3,3095.3,3.2307]
[1732026728606,3.99896,3096.5,3095.6,3.23037]
[1732026728964,0.7695,3096.5,3095.8,3.23013]
[1732026729193,0.65105461,3096.4,3095.7,3.23025]
[1732026729506,3.46499546,3096.4,3094.9,4.02926]
[1732026729675,3.46499546,3096.4,3094.4,3.24159]
[1732026729676,0.7914,3095.9,3094.5,0.7517]
[1732026729860,3.23019,3095.8,3094.9,3.23101]
[1732026730309,4.23314445,3095.3,3093.8,3.23216]
[1732026730516,3.0,3094.9,3093.8,3.23216]
[1732026730806,3.23099,3095.1,3093.6,3.23247]
[1732026731018,3.8134,3095.2,3094.2,3.23181]
[1732026731163,0.8134,3095.2,3094.8,3.23118]
[1732026731565,0.8134,3095.2,3095.0,3.23099]
[1732026731769,0.7597,3095.6,3095.0,3.23099]
[1732026731987,0.7597,3095.6,3094.9,3.2311]
[1732026732465,0.7597,3095.6,3094.4,0.55]
[1732026732690,0.8157,3096.6,3095.7,3.23019]
[1732026732902,0.8157,3096.6,3095.2,3.7808]
[1732026733103,3.22896,3097.0,3096.0,3.22989]
[1732026733303,3.22871,3097.3,3096.4,3.22949]
[1732026733304,0.8157,3097.2,3096.4,3.22949]
[1732026733508,0.8157,3097.2,3096.5,3.22944]
[1732026733665,0.8157,3097.2,3096.7,3.22923]
[1732026734005,0.8157,3097.2,3096.9,3.22893]
[1732026734239,0.8157,3097.6,3097.0,3.22889]
[1732026734439,0.8157,3097.6,3096.5,3.55]
[1732026734594,0.8157,3097.6,3097.1,3.22873]
[1732026734796,0.7887,3098.0,3097.1,3.22873]
[1732026734991,0.7887,3098.0,3097.6,3.22828]
[1732026735254,0.64477379,3098.1,3097.7,3.22819]
[1732026735395,0.7732,3098.4,3097.4,0.55]
[1732026735594,0.7732,3098.4,3097.9,3.22792]
[1732026735840,0.7732,3098.4,3098.1,3.22776]
[1732026736028,0.7732,3098.4,3098.2,3.22763]
[1732026736341,0.7732,3098.4,3097.6,0.7943]
[1732026736342,0.8095,3099.2,3098.6,3.22717]
[1732026736561,0.8095,3099.2,3098.4,3.22746]
[1732026736848,0.8095,3099.2,3098.5,3.22727]
[1732026737011,0.8095,3099.2,3097.9,3.22795]
[1732026737194,0.8095,3099.2,3097.7,0.55]
[1732026737195,3.22685,3099.0,3098.0,3.22788]
[1732026737398,0.7908,3099.0,3097.7,0.55]
[1732026737598,0.7908,3099.0,3096.6,0.64075978]
[1732026737599,3.22793,3098.0,3097.2,3.22868]
[1732026737916,3.22793,3098.0,3096.6,0.7943]
[1732026738123,3.22778,3098.1,3097.3,3.22858]
[1732026738314,3.22789,3098.0,3097.3,3.22858]
[1732026738521,3.228,3097.9,3097.0,3.22885]
[1732026738718,3.22778,3098.1,3097.2,3.22866]
[1732026739002,3.22812,3097.8,3096.8,3.22911]
[1732026739236,3.22833,3097.6,3096.8,3.22911]
[1732026739446,3.22856,3097.4,3096.7,3.22924]
[1732026739598,0.7522,3097.5,3096.4,3.22954]
[1732026739799,3.22851,3097.4,3096.2,4.05595]
[1732026740027,0.7864,3096.6,3095.8,3.23015]
[1732026740223,4.01577,3096.6,3095.8,3.23015]
[1732026740491,0.7864,3096.6,3095.1,0.7842]
[1732026740613,3.22996,3096.1,3095.3,3.23064]
[1732026740812,3.22996,3096.1,3095.4,3.23057]
[1732026740813,0.7864,3096.1,3095.4,3.23057]
[1732026741013,0.01,3096.8,3094.4,3.23159]
[1732026741014,4.23314445,3095.9,3094.4,0.63706974]
[1732026741241,8.91,3096.8,3093.6,0.7646]
[1732026741242,3.2312,3094.9,3093.6,0.7646]
[1732026741547,0.8094,3094.8,3093.6,0.7646]
[1732026741770,0.8094,3094.8,3094.1,3.23193]
[1732026741905,0.8094,3094.8,3093.9,3.23213]
[1732026742103,3.23151,3094.6,3093.9,3.23213]
[1732026742304,3.23148,3094.6,3093.9,3.23213]
[1732026742611,4.04068,3094.8,3094.1,3.23187]
[1732026742942,4.04068,3094.8,3094.1,3.23193]
[1732026743147,3.23162,3094.5,3093.7,3.23234]
[1732026743354,3.23133,3094.7,3094.0,3.23205]
[1732026743503,3.23133,3094.7,3093.0,0.7934]
[1732026743703,0.8094,3094.8,3093.5,0.01]
[1732026743945,0.8094,3094.8,3094.2,3.23183]
[1732026744122,0.8094,3094.8,3094.3,3.23174]
[1732026744324,0.8094,3094.8,3093.8,6.23222]
[1732026744608,4.03532,3095.2,3094.6,0.55]
[1732026745058,0.8045,3095.2,3094.8,0.55]
[1732026745206,0.8045,3095.2,3094.8,3.78114]
[1732026745406,0.7615,3095.7,3095.1,3.2309]
[1732026745609,0.7615,3095.7,3095.2,0.55]
[1732026745813,0.7615,3095.7,3095.3,0.55]
[1732026746149,0.7615,3095.7,3094.5,3.23152]
[1732026746463,3.23095,3095.1,3094.6,0.55]
[1732026746833,0.776,3095.3,3094.0,3.23199]
[1732026747025,0.776,3095.3,3094.1,3.0]
[1732026747026,3.23135,3094.7,3094.1,3.0]
[1732026747325,3.23133,3094.7,3094.1,3.23194]
[1732026747555,3.23133,3094.7,3093.8,3.23224]
[1732026747556,3.23157,3094.5,3093.8,3.0]
[1732026747730,3.23166,3094.4,3093.7,3.23234]
[1732026747936,3.23166,3094.4,3093.5,3.99336]
[1732026747937,0.7695,3094.5,3093.8,3.23227]
[1732026748127,0.7695,3094.5,3094.0,3.23202]
[1732026748440,3.23125,3094.8,3094.0,3.23202]
[1732026748643,3.23142,3094.7,3094.0,3.23202]
[1732026748964,0.8101,3093.9,3093.0,4.0287]
[1732026749183,0.8101,3093.9,3093.1,3.23291]
[1732026749184,3.23229,3093.8,3093.1,3.23291]
[1732026749457,3.2324,3093.7,3093.0,3.23308]
[1732026749660,0.8101,3093.9,3093.3,3.23275]
[1732026749960,4.04226,3093.9,3093.1,3.23294]
[1732026750128,0.8101,3093.9,3093.2,3.23284]
[1732026750317,3.23227,3093.8,3093.0,3.233]
[1732026750516,0.8101,3093.9,3093.2,3.23286]
[1732026750717,0.8101,3093.9,3092.7,3.23342]
[1732026750964,0.8101,3093.9,3093.3,3.23269]
[1732026751264,0.8101,3093.9,3092.6,3.23352]
[1732026751559,0.8101,3093.9,3093.5,3.23251]
[1732026751945,0.8101,3093.9,3093.6,3.23246]
[1732026752147,4.00355,3094.4,3093.8,3.23227]
[1732026752458,4.00355,3094.4,3094.0,3.23195]
[1732026752459,0.7719,3094.4,3094.0,3.23195]
[1732026752816,0.7719,3094.4,3093.4,0.8134]
[1732026752817,0.7719,3094.4,3093.9,0.55]
[1732026753018,0.7719,3094.4,3094.1,3.23188]
[1732026753241,0.7719,3094.4,3094.2,0.55]
[1732026753483,0.7719,3094.4,3093.7,3.23233]
[1732026753638,4.00354,3094.4,3093.6,0.55]
[1732026753836,4.00354,3094.4,3093.8,3.23224]
[1732026754284,1.495399,3094.4,3093.2,3.23287]
[1732026754457,3.23235,3093.8,3093.1,3.233]
[1732026754867,3.23239,3093.7,3093.1,3.233]
[1732026755047,3.23276,3093.4,3092.7,3.23341]
[1732026755439,3.23276,3093.4,3092.4,3.23369]
[1732026755440,3.23357,3092.6,3092.0,3.23411]
[1732026755646,3.23343,3092.7,3092.0,3.23411]
[1732026755884,0.7544,3092.2,3091.8,0.1417608]
[1732026756256,3.98835,3092.2,3091.8,0.1417608]
[1732026756462,3.23406,3092.1,3091.8,0.1417608]
[1732026756792,0.7544,3092.2,3091.8,0.1417608]
[1732026757646,0.7544,3092.2,3091.9,3.23417]
[1732026758161,3.23339,3092.8,3092.0,3.23407]
[1732026758363,3.23357,3092.6,3092.0,3.23415]
[1732026758660,3.23339,3092.8,3092.1,0.55]
[1732026758839,3.23339,3092.8,3092.1,3.78402]
[1732026759039,0.8218,3092.9,3092.5,3.23358]
[1732026759279,0.8218,3092.9,3092.6,0.55]
[1732026759482,0.8119,3093.5,3092.6,0.55]
[1732026759746,0.8119,3093.5,3093.0,0.55]
[1732026759747,4.04449,3093.5,3093.0,0.55]
[1732026760064,3.23289,3093.3,3092.8,0.55]
[1732026760441,3.23289,3093.3,3092.3,0.8212]
[1732026760442,3.23268,3093.4,3092.3,3.23382]
[1732026760665,3.23314,3093.0,3092.4,0.55]
[1732026760862,4.04454,3093.5,3092.4,0.55]
[1732026761061,0.8119,3093.5,3093.0,0.55]
[1732026761303,0.8119,3093.5,3093.2,0.55]
[1732026761473,0.8119,3093.5,3093.0,0.55]
[1732026761677,3.23275,3093.4,3093.0,0.55]
[1732026761879,3.2328,3093.3,3092.8,0.55]
[1732026762075,3.23302,3093.1,3092.5,3.23359]
[1732026762392,3.23302,3093.1,3092.6,3.23349]
[1732026762596,3.23302,3093.1,3092.4,3.23366]
[1732026762762,1.216344,3093.5,3091.8,0.9158608]
[1732026762763,3.23287,3093.3,3092.5,3.23362]
[1732026762965,0.8119,3093.5,3093.0,3.23304]
[1732026763205,0.8119,3093.5,3093.0,3.23306]
[1732026763403,3.2328,3093.3,3092.2,3.78392]
[1732026763570,3.23299,3093.2,3092.7,0.55]
[1732026763913,3.23302,3093.1,3092.5,3.2336]
[1732026764452,0.8119,3093.5,3092.6,3.23346]
[1732026764724,0.8119,3093.5,3093.0,0.55]
[1732026764892,0.8119,3093.5,3093.3,0.55]
[1732026765097,0.8119,3093.5,3093.4,3.23268]
[1732026765325,3.23174,3094.3,3093.7,3.2323]
[1732026765326,0.7754,3094.2,3093.7,3.2323]
[1732026765539,0.7754,3094.2,3092.8,3.23326]
[1732026765540,0.7754,3094.2,3093.8,0.55]
[1732026765823,0.7754,3094.2,3093.7,0.55]
[1732026766124,0.7754,3094.2,3093.8,3.23226]
[1732026766707,0.7754,3094.2,3093.3,3.23275]
[1732026766914,0.7754,3094.2,3093.4,0.55]
[1732026767232,0.7754,3094.2,3093.3,3.23279]
[1732026767233,3.23222,3093.9,3093.3,3.23279]
[1732026767414,3.232,3094.1,3093.3,3.23272]
[1732026767582,3.63274,3094.1,3093.5,3.23256]
[1732026767898,3.63274,3094.1,3092.8,3.23322]
[1732026767899,3.23265,3093.5,3092.8,3.23322]
[1732026768597,6.23254,3093.6,3093.0,3.23308]
[1732026768907,3.23259,3093.5,3093.0,3.23308]
[1732026769240,1.271914,3094.0,3093.2,3.23287]
[1732026769546,3.23247,3093.7,3093.0,3.23309]
[1732026769704,6.4700203,3093.6,3093.0,3.23302]
[1732026770030,0.2375003,3093.5,3093.0,3.23302]
[1732026770208,0.2375003,3093.4,3093.0,3.23302]
[1732026770415,3.23265,3093.5,3092.8,3.23323]
[1732026770629,0.23780856,3093.4,3093.0,3.23307]
[1732026770786,6.23249,3093.6,3093.0,3.23308]
[1732026770989,0.23781307,3093.5,3093.0,3.23308]
[1732026771286,0.23781307,3093.4,3093.0,3.23308]
[1732026771481,0.23781307,3093.3,3093.0,3.23308]
[1732026771722,0.23792189,3093.2,3092.8,3.23323]
[1732026771960,3.23241,3093.7,3092.3,0.55]
[1732026772117,0.8017,3093.8,3093.3,3.23277]
[1732026772118,3.8017,3093.8,3093.3,3.23277]
[1732026772326,0.23798054,3093.6,3093.3,3.23277]
[1732026772566,0.23798054,3093.6,3093.1,3.23294]
[1732026772854,0.23798054,3093.6,3093.5,3.23258]
[1732026773057,0.06664943,3093.6,3093.5,3.23258]
[1732026773727,0.06664943,3093.6,3093.2,3.23285]
[1732026773912,3.29912943,3093.6,3093.0,3.99132]
[1732026774109,3.29912943,3093.6,3092.8,3.23322]
[1732026774416,3.98688,3093.4,3092.6,3.99181]
[1732026774726,3.98688,3093.4,3092.7,3.23334]
[1732026774917,3.98688,3093.4,3092.6,3.23351]
[1732026774918,3.23285,3093.3,3092.6,3.23351]
[1732026775122,3.23306,3093.1,3092.3,3.23383]
[1732026775324,3.2333,3092.9,3092.3,3.23383]
[1732026775508,3.23296,3093.2,3092.6,3.23346]
[1732026775733,1.42977104,3093.2,3092.0,3.23408]
[1732026775935,1.42977104,3093.2,3092.5,3.23354]
[1732026775936,0.8009,3093.2,3092.5,3.23354]
[1732026776139,3.23301,3093.1,3092.5,3.23354]
[1732026776383,3.23262,3093.5,3092.9,3.23313]
[1732026776595,3.23262,3093.5,3093.0,3.2331]
[1732026777053,3.23269,3093.4,3092.8,3.23322]
[1732026777254,3.23262,3093.5,3092.8,3.23322]
[1732026777477,3.23267,3093.5,3092.6,4.04579]
[1732026777793,3.23284,3093.3,3092.7,3.23341]
[1732026778087,3.23284,3093.3,3092.2,3.23394]
[1732026778088,0.7696,3093.2,3092.2,3.23394]
[1732026778236,0.7696,3093.2,3092.7,3.23334]
[1732026778436,0.7696,3093.2,3092.9,3.23315]
[1732026778658,3.233,3093.1,3092.1,0.7724]
[1732026778957,3.29919943,3093.6,3093.0,3.23301]
[1732026779352,3.29919943,3093.6,3092.8,3.23328]
[1732026779353,3.2327,3093.4,3092.8,3.23328]
[1732026779553,0.06664943,3093.6,3092.8,3.23324]
[1732026779757,3.23258,3093.5,3092.6,3.23348]
[1732026780083,4.05728,3093.2,3092.1,0.7724]
[1732026780289,3.23317,3093.0,3092.1,4.00637]
[1732026780497,0.8243,3092.5,3091.8,0.1417608]
[1732026780789,0.8243,3092.9,3091.9,0.7947]
[1732026780994,0.8243,3092.9,3092.5,3.23361]
[1732026781198,3.23361,3092.6,3092.0,3.2341]
[1732026781399,0.8243,3092.9,3091.9,3.23425]
[1732026781681,0.8243,3092.9,3092.2,3.23387]
[1732026782038,3.23331,3092.8,3092.2,3.23387]
[1732026782238,3.23332,3092.8,3092.2,3.23387]
[1732026782500,0.8243,3092.9,3091.9,3.23425]
[1732026782637,3.23274,3093.4,3092.7,3.23339]
[1732026782966,3.23233,3093.8,3093.0,3.23304]
[1732026783199,3.2329,3093.2,3092.2,0.7553]
[1732026783391,3.23342,3092.7,3092.1,3.23398]
[1732026783744,3.23342,3092.7,3091.9,6.46833]
[1732026783745,3.23364,3092.5,3091.9,6.46833]
[1732026784041,3.23342,3092.7,3092.1,3.23401]
[1732026784242,3.23342,3092.7,3091.9,3.23417]
[1732026784437,6.23294,3093.2,3091.8,0.1417608]
[1732026784438,3.23391,3092.3,3091.8,0.1417608]
[1732026784637,4.05223,3092.4,3091.8,0.1417608]
[1732026784839,0.8184,3092.4,3091.8,3.3760108]
[1732026785082,0.23878983,3092.3,3091.8,0.1417608]
[1732026785291,3.0,3093.3,3091.9,0.8112]
[1732026785292,0.8184,3092.7,3091.9,0.8112]
[1732026785494,0.23876268,3092.6,3092.1,3.23404]
[1732026785798,0.8184,3093.1,3091.9,0.8112]
[1732026786095,0.8184,3093.1,3093.0,3.2331]
[1732026786249,0.8184,3093.1,3092.0,3.78415]
[1732026786250,0.8184,3093.1,3092.7,3.23335]
[1732026786438,0.8184,3093.1,3092.8,3.23323]
[1732026786640,0.8184,3093.1,3092.7,3.23341]
[1732026786852,0.8184,3093.1,3092.5,6.46711]
[1732026787088,0.8184,3093.1,3092.0,3.23413]
[1732026787089,3.23333,3092.8,3092.2,3.23384]
[1732026787271,0.23875798,3092.7,3092.2,3.23384]
[1732026787454,3.23333,3092.8,3092.2,3.23384]
[1732026787656,0.23887261,3092.7,3092.2,3.23384]
[1732026787909,0.7898,3092.5,3091.8,3.3760608]
[1732026788198,0.23887261,3092.4,3091.8,0.1417608]
[1732026788374,3.23421,3092.0,3091.8,0.1417608]
[1732026788789,0.7898,3091.9,3091.8,0.1417608]
[1732026789143,4.02405,3091.9,3091.8,0.1417608]
[1732026789343,0.7898,3091.9,3091.8,0.1417608]
[1732026789591,0.8081,3092.3,3091.9,3.23417]
[1732026789759,0.23882549,3092.2,3091.9,6.46835]
[1732026789966,3.0,3092.6,3092.3,3.23374]
[1732026790169,7.46585445,3093.4,3092.4,3.23373]
[1732026790170,0.23883593,3092.5,3092.4,3.23373]
[1732026790382,4.04101,3093.2,3091.9,3.23425]
[1732026790383,0.8081,3093.2,3091.9,3.23425]
[1732026790691,0.23884576,3093.1,3091.9,0.55]
[1732026790919,0.23884576,3093.0,3092.8,3.23323]
[1732026791066,3.23311,3093.0,3092.5,3.2336]
[1732026791271,0.8081,3093.2,3092.5,3.23358]
[1732026791520,3.23317,3093.0,3092.5,3.23358]
[1732026791681,0.23886689,3092.9,3092.4,3.23365]
[1732026792024,0.23886689,3092.9,3092.2,0.788]
[1732026792025,3.2334,3092.8,3092.2,3.23386]
[1732026792306,0.23884875,3092.7,3092.3,3.23379]
[1732026792506,3.23312,3093.0,3092.4,3.23363]
[1732026792708,0.2388572,3092.9,3092.2,3.23388]
[1732026793018,0.2388572,3092.8,3092.2,3.23386]
[1732026793168,6.233,3093.1,3092.5,3.23358]
[1732026793522,3.47203863,3093.0,3092.5,3.23358]
[1732026793681,3.23301,3093.1,3092.5,3.23356]
[1732026793881,0.23890105,3093.0,3092.6,3.23345]
[1732026794090,3.23301,3093.1,3092.6,3.23345]
[1732026794281,0.23886859,3093.0,3092.6,6.46689]
[1732026794490,3.23302,3093.1,3092.0,3.23415]
[1732026794694,0.23888259,3093.0,3092.5,3.23354]
[1732026794923,3.23302,3093.1,3092.5,3.23361]
[1732026795125,3.23302,3093.1,3091.9,0.7841]
[1732026795126,0.23888466,3093.0,3092.7,3.23334]
[1732026795428,0.23888466,3093.1,3093.0,3.2331]
[1732026795577,0.8081,3093.2,3093.0,3.2331]
[1732026795778,0.8081,3093.2,3092.8,3.23331]
[1732026796094,0.7791,3093.8,3093.4,3.23262]
[1732026796277,0.23912967,3093.7,3093.5,3.23256]
[1732026796485,0.23912967,3093.6,3093.4,3.23266]
[1732026796683,0.23912967,3093.7,3093.5,3.23258]
[1732026796928,0.7791,3093.8,3093.5,3.23258]
[1732026797125,0.7791,3093.8,3093.3,3.23277]
[1732026797338,0.7791,3093.8,3092.7,0.8258]
[1732026797339,3.23264,3093.5,3092.7,3.23335]
[1732026797500,0.8298,3093.2,3092.1,3.23402]
[1732026797701,0.8298,3093.2,3091.9,4.03772]
[1732026797702,3.47211643,3093.1,3091.9,4.03772]
[1732026798024,3.47211643,3093.1,3092.4,3.23363]
[1732026798025,3.233,3093.1,3092.4,3.23363]
[1732026798432,3.23325,3092.9,3092.3,3.23383]
[1732026798586,1.029562,3093.1,3091.9,4.03772]
[1732026798791,4.06279,3093.2,3092.5,3.23355]
[1732026799027,0.23918841,3093.1,3092.6,3.23349]
[1732026799235,0.8298,3093.2,3092.5,3.23355]
[1732026799542,0.23920734,3093.1,3092.6,3.23352]
[1732026799691,0.8298,3093.2,3091.9,3.8035]
[1732026800038,3.23338,3092.8,3092.2,3.23393]
[1732026801028,4.44577,3093.2,3092.4,3.23372]
[1732026801190,4.44577,3093.2,3092.1,3.23394]
[1732026801191,0.23918605,3093.1,3092.6,3.23346]
[1732026801390,0.8298,3093.2,3092.8,3.23327]
[1732026801644,4.68526984,3093.9,3092.8,3.23321]
[1732026801645,0.771,3093.7,3092.8,3.23321]
[1732026801793,0.23926178,3093.6,3092.7,0.7736]
[1732026801996,0.771,3093.7,3093.3,3.23279]
[1732026802430,0.771,3093.7,3093.3,3.23277]
[1732026802640,0.771,3093.7,3093.3,3.2327]
[1732026803033,0.771,3093.7,3093.1,6.46588]
[1732026803340,3.23281,3093.3,3092.8,3.23321]
[1732026803544,3.23263,3093.5,3092.7,3.2334]
[1732026803698,3.23263,3093.5,3092.8,3.23327]
[1732026803699,0.23932567,3093.4,3092.8,3.23327]
[1732026804139,0.23932567,3093.4,3092.3,0.7623]
[1732026804140,0.23932567,3093.3,3092.7,3.23341]
[1732026804337,3.99005,3093.3,3092.8,3.2333]
[1732026804544,3.23311,3093.0,3092.4,3.23366]
[1732026804713,0.7737,3092.6,3092.0,6.46818]
[1732026804902,0.7737,3092.6,3092.1,3.23401]
[1732026805101,0.7737,3092.6,3092.0,3.23407]
[1732026805344,0.7737,3092.6,3092.1,3.23402]
[1732026805637,4.00728,3092.6,3092.0,3.23407]
[1732026805839,4.00728,3092.6,3092.1,3.23402]
[1732026806196,4.00728,3092.6,3092.0,3.23407]
[1732026806605,4.00728,3092.6,3091.8,0.1417608]
[1732026806839,3.23392,3092.3,3091.8,0.1417608]
[1732026807141,1.174428,3092.6,3091.8,0.1417608]
[1732026807338,4.00955,3091.9,3091.8,0.1417608]
[1732026808939,0.7753,3091.9,3091.8,0.1417608]
[1732026809306,4.00955,3091.9,3091.8,0.1417608]
[1732026809707,4.410505,3091.9,3091.8,0.1417608]
[1732026810013,4.24880636,3091.9,3091.8,0.1417608]
[1732026810417,0.7753,3091.9,3091.8,0.1417608]
[1732026810910,0.7754,3092.5,3091.8,0.1417608]
[1732026811103,4.00911,3092.5,3091.9,3.23418]
[1732026811340,3.234,3092.2,3091.8,0.1417608]
[1732026811954,3.23421,3092.0,3091.8,0.1417608]
[1732026812155,0.7754,3092.5,3091.8,0.1417608]
[1732026812156,3.23425,3091.9,3091.8,0.1417608]
[1732026812321,3.98825,3091.9,3091.8,0.1417608]
[1732026812719,4.22730358,3091.9,3091.8,0.1417608]
[1732026813127,7.22732224,3091.9,3091.8,0.1417608]
[1732026813327,8.59788246,3091.9,3091.8,0.1417608]
[1732026815040,0.8275,3091.6,3091.4,0.162]
[1732026815212,11.52438669,3091.5,3091.4,0.162]
[1732026815410,12.76057536,3091.5,3091.4,0.162]
[1732026816008,13.31057536,3091.5,3091.4,0.162]
[1732026816226,3.23519,3091.0,3088.9,3.23733]
[1732026816457,3.23654,3089.8,3089.1,3.23709]
[1732026816641,3.23667,3089.6,3089.0,3.23728]
[1732026816840,0.7706,3090.3,3089.6,0.7687]
[1732026817049,0.7706,3090.6,3090.0,3.23615]
[1732026817256,0.7893,3091.0,3089.6,0.7687]
[1732026817442,0.7893,3091.0,3090.5,3.2357]
[1732026817777,3.23532,3090.9,3090.3,0.8159]
[1732026817942,3.2353,3090.9,3090.0,3.2362]
[1732026818272,0.40246,3090.9,3090.0,3.23616]
[1732026818439,3.2354,3090.8,3090.0,3.23616]
[1732026818643,3.0,3090.9,3090.2,3.23603]
[1732026818963,3.0,3090.9,3089.9,0.8159]
[1732026818964,3.23568,3090.6,3090.0,3.23622]
[1732026819171,3.23547,3090.8,3090.0,3.23616]
[1732026819329,3.23547,3090.8,3089.9,0.8159]
[1732026819675,3.23547,3090.8,3090.2,3.236]
[1732026819883,3.235,3091.2,3090.0,3.23624]
[1732026820032,0.7782,3091.3,3090.6,3.23561]
[1732026820368,0.7782,3091.3,3090.9,3.23527]
[1732026820682,4.05558,3092.1,3091.4,3.23476]
[1732026820906,4.05558,3092.1,3090.7,3.23551]
[1732026820907,0.8215,3092.1,3091.7,3.23436]
[1732026821178,3.23422,3092.0,3090.6,0.8073]
[1732026821379,0.405572,3092.0,3091.1,3.23505]
[1732026821675,4.05562,3092.1,3091.3,3.23487]
[1732026821859,4.05562,3092.1,3091.4,3.2347]
[1732026822068,3.23431,3091.9,3091.3,3.23485]
[1732026822267,7.28973,3092.1,3090.8,3.23534]
[1732026822469,0.8215,3092.1,3091.3,0.8153]
[1732026822671,3.23433,3091.9,3091.2,3.23492]
[1732026822854,0.8215,3092.1,3091.5,3.23467]
[1732026823062,0.8215,3092.1,3091.7,3.2344]
[1732026823300,0.8215,3092.1,3091.1,0.8153]
[1732026823462,3.23422,3092.0,3091.5,3.23466]
[1732026823643,6.46847,3092.0,3091.3,3.23478]
[1732026823843,3.23436,3091.8,3091.3,3.23478]
[1732026824051,0.728997,3092.0,3090.8,0.7634]
[1732026824352,3.23488,3091.4,3090.8,3.2354]
[1732026824568,3.23487,3091.4,3090.6,3.2356]
[1732026824864,0.7781,3091.2,3090.5,3.99906]
[1732026825168,0.7781,3091.2,3090.5,0.7634]
[1732026825169,4.01314,3091.2,3090.5,0.7634]
[1732026825369,0.7781,3091.2,3090.5,0.7634]
[1732026825686,0.7781,3091.2,3090.7,3.23544]
[1732026825868,0.7781,3091.2,3090.5,0.7634]
[1732026825869,0.7781,3091.2,3090.6,3.23561]
[1732026826068,0.7781,3091.2,3090.8,3.23539]
[1732026826271,0.7781,3091.2,3090.5,0.7634]
[1732026826487,0.7781,3091.2,3090.4,3.23573]
[1732026826696,3.23516,3091.1,3090.6,3.2356]
[1732026826865,4.01311,3091.2,3090.6,3.2356]
[1732026827208,4.01311,3091.2,3089.5,0.64405123]
[1732026827209,3.2354,3090.8,3089.5,0.64405123]
[1732026827497,3.23584,3090.4,3089.8,3.23643]
[1732026827783,3.23557,3090.7,3090.1,3.23607]
[1732026827985,3.23557,3090.7,3089.2,0.8083]
[1732026827986,0.8214,3090.9,3089.9,4.0346]
[1732026828149,3.23559,3090.7,3089.9,4.0346]
[1732026828350,0.8214,3090.9,3090.3,3.23583]
[1732026828553,0.8214,3090.9,3090.1,3.23613]
[1732026828554,3.23558,3090.7,3090.1,3.23613]
[1732026829287,4.05674,3090.9,3090.2,3.23596]
[1732026829464,3.23553,3090.7,3090.2,3.23596]
[1732026830000,3.23553,3090.7,3090.0,3.23623]
[1732026830290,3.23567,3090.6,3090.0,3.23624]
[1732026830453,3.23574,3090.5,3090.0,3.23624]
[1732026830776,0.8042,3090.4,3089.0,3.2372]
[1732026830975,3.2364,3089.9,3089.2,3.23701]
[1732026831176,3.2364,3089.9,3089.0,6.47445]
[1732026831177,3.23657,3089.7,3089.0,6.47445]
[1732026831381,3.23617,3090.1,3089.4,3.23687]
[1732026831550,3.23598,3090.3,3088.9,4.03325]
[1732026831551,3.23598,3090.3,3088.9,0.7959]
[1732026831864,3.23603,3090.2,3088.9,0.7959]
[1732026832067,3.23603,3090.2,3088.7,0.1417608]
[1732026832068,0.01,3090.1,3088.7,0.1417608]
[1732026832268,3.23693,3089.4,3088.7,0.1417608]
[1732026832587,3.23693,3089.4,3088.7,6.6168108]
[1732026832795,3.23684,3089.5,3088.7,0.1417608]
[1732026832975,0.8044,3089.6,3088.7,0.1417608]
[1732026833187,3.23689,3089.4,3088.7,0.1417608]
[1732026833351,0.8044,3089.6,3088.7,0.1417608]
[1732026833352,0.8044,3089.6,3088.8,3.2375]
[1732026833554,0.8044,3089.6,3088.9,3.23739]
[1732026833756,3.23677,3089.5,3088.8,3.2375]
[1732026833998,0.7552,3089.9,3088.8,3.2375]
[1732026834334,3.23674,3089.6,3089.0,3.23728]
[1732026834622,3.237,3089.3,3088.7,0.1417608]
[1732026834802,3.237,3089.3,3088.7,3.3793608]